bitfinex/quotes_SOLUSD_20250402
["timestamp","ask_amount","ask_price","bid_price","bid_amount"]
[1743575963107,0.03,124.29,124.28,108.9463]
[1743575965008,0.03,124.29,124.28,127.59594886]
[1743575967410,0.03,124.29,124.28,157.59594886]
[1743575968111,0.03,124.3,124.28,157.59594886]
[1743575968318,0.03,124.32,124.28,157.59594886]
[1743575968319,0.0001,124.32,124.31,18.64964886]
[1743575968492,0.0001,124.32,124.31,26.113972]
[1743575970211,0.0001,124.32,124.31,34.158372]
[1743575970409,0.0001,124.32,124.31,64.158372]
[1743575972115,0.0001,124.33,124.31,64.158372]
[1743575972317,0.0001,124.33,124.32,28.32802314]
[1743575972619,0.0001,124.33,124.32,58.32802314]
[1743575975910,0.0001,124.33,124.32,76.69334886]
[1743575977014,0.0001,124.33,124.32,56.69334886]
[1743575977519,0.03,124.36,124.34,20.0]
[1743575977703,0.03,124.36,124.34,100.9]
[1743575978331,0.03,124.36,124.34,119.54964886]
[1743575978508,0.03,124.36,124.34,139.833972]
[1743575979427,0.03,124.36,124.35,18.64964886]
[1743575979725,0.03,124.36,124.35,33.87144886]
[1743575980830,0.03,124.37,124.35,33.87144886]
[1743575982132,0.03,124.37,124.35,15.2218]
[1743575982308,0.03,124.37,124.36,7.18]
[1743575983327,0.03,124.37,124.35,8.0418]
[1743575987528,0.03,124.37,124.35,26.69144886]
[1743575987912,0.03,124.37,124.35,8.0418]
[1743575989236,0.03,124.37,124.35,88.9418]
[1743575994538,0.03,124.37,124.36,18.64964886]
[1743575995037,0.03,124.37,124.35,95.4041]
[1743575995224,0.03,124.37,124.36,7.18]
[1743575996022,0.03,124.37,124.35,96.1218]
[1743575998442,0.03,124.37,124.35,80.9]
[1743575999722,0.03,124.37,124.35,88.9417]
[1743576000327,0.03,124.37,124.35,89.0047]
[1743576001029,0.03,124.37,124.35,8.1047]
[1743576001646,0.03,124.37,124.35,0.063]
[1743576009449,0.03,124.37,124.36,20.0]
[1743576011234,0.03,124.37,124.36,28.0411]
[1743576011746,0.03,124.37,124.36,20.0]
[1743576011934,0.03,124.37,124.35,0.063]
[1743576014646,16.15790499,124.36,124.35,0.063]
[1743576015152,24.48332813,124.36,124.35,0.063]
[1743576019458,43.13297699,124.36,124.35,0.063]
[1743576020043,24.48332813,124.36,124.35,0.063]
[1743576020250,43.13297699,124.36,124.35,0.063]
[1743576021650,0.28432314,124.34,124.31,0.063]
[1743576021851,16.15790499,124.33,124.31,0.063]
[1743576024544,24.48492813,124.34,124.31,0.063]
[1743576025562,16.15790499,124.34,124.31,0.063]
[1743576025747,24.19990499,124.35,124.31,0.063]
[1743576026865,16.44222813,124.34,124.31,0.063]
[1743576027374,16.15790499,124.33,124.31,0.063]
[1743576028467,24.48492813,124.34,124.31,0.063]
[1743576029278,16.15790499,124.33,124.31,0.063]
[1743576030185,8.0437,124.32,124.31,0.063]
[1743576031652,24.20110499,124.33,124.31,0.063]
[1743576037072,8.0432,124.33,124.31,0.063]
[1743576037269,0.03,124.35,124.31,0.063]
[1743576037447,16.18790499,124.35,124.31,0.063]
[1743576038354,24.22990499,124.35,124.31,0.063]
[1743576039048,8.072,124.35,124.31,0.063]
[1743576039355,24.22990499,124.35,124.31,0.063]
[1743576039553,0.03,124.35,124.31,0.063]
[1743576039955,0.03,124.35,124.31,7.8278]
[1743576041452,0.03,124.35,124.31,15.8716]
[1743576046355,0.03,124.35,124.32,7.18]
[1743576049869,0.03,124.35,124.31,15.8722]
[1743576050078,0.03,124.35,124.34,20.0]
[1743576050279,0.03,124.35,124.34,133.11754886]
[1743576050488,0.03,124.35,124.34,134.63504886]
[1743576051365,0.03,124.35,124.34,115.9854]
[1743576052196,0.03,124.35,124.34,124.0278]
[1743576052687,0.03,124.35,124.34,142.67744886]
[1743576056770,0.03,124.35,124.34,114.4679]
[1743576057176,0.03,124.35,124.34,122.5103]
[1743576057383,0.03,124.35,124.34,114.4679]
[1743576057761,0.03,124.35,124.34,122.5103]
[1743576058091,0.03,124.35,124.34,114.4679]
[1743576058378,0.03,124.35,124.34,107.2879]
[1743576059283,0.03,124.35,124.34,115.3303]
[1743576060681,0.03,124.35,124.34,80.9]
[1743576062588,0.03,124.35,124.34,88.9424]
[1743576066785,0.03,124.35,124.34,107.59204886]
[1743576068682,0.03,124.35,124.34,137.59204886]
[1743576069864,0.03,124.36,124.35,20.28432314]
[1743576070373,0.03,124.36,124.35,21.83592314]
[1743576070584,0.03,124.37,124.36,18.64964886]
[1743576071074,0.03,124.37,124.36,107.59074886]
[1743576074587,0.03,124.37,124.36,137.59074886]
[1743576075490,0.03,124.37,124.36,118.9411]
[1743576076292,0.03,124.37,124.36,88.9411]
[1743576077897,0.03,124.37,124.36,96.1011]
[1743576078275,0.03,124.37,124.36,114.75074886]
[1743576080794,0.03,124.37,124.36,88.06]
[1743576081392,0.03,124.37,124.36,80.9]
[1743576082295,0.03,124.37,124.33,312.34]
[1743576082495,0.03,124.37,124.34,30.0]
[1743576082798,0.03,124.37,124.36,0.063]
[1743576086100,24.22840499,124.37,124.36,0.063]
[1743576087999,8.0705,124.37,124.36,0.063]
[1743576089406,0.03,124.37,124.36,0.063]
[1743576096314,0.03,124.37,124.36,0.063]
[1743576097921,16.18790499,124.37,124.36,0.063]
[1743576098295,24.22840499,124.37,124.36,0.063]
[1743576106797,43.16237699,124.37,124.36,0.063]
[1743576108131,63.26367699,124.37,124.31,80.963]
[1743576108437,16.15790499,124.33,124.31,0.063]
[1743576109515,8.0437,124.32,124.31,0.063]
[1743576110245,16.15790499,124.34,124.31,0.063]
[1743576110546,24.20030499,124.34,124.31,0.063]
[1743576117829,8.0424,124.34,124.31,0.063]
[1743576118348,24.20030499,124.34,124.31,0.063]
[1743576119553,16.15790499,124.33,124.31,0.063]
[1743576120225,16.15790499,124.32,124.31,0.063]
[1743576120626,16.44222813,124.32,124.31,0.063]
[1743576120843,35.09187699,124.32,124.31,0.063]
[1743576121047,101.29249695,124.32,124.31,0.063]
[1743576121431,101.29249695,124.32,124.31,0.0001]
[1743576121629,109.33619695,124.32,124.31,0.0001]
[1743576122425,18.933972,124.28,124.25,0.063]
[1743576122642,16.15790499,124.27,124.25,30.063]
[1743576123047,16.15790499,124.27,124.25,0.063]
[1743576123555,43.31790499,124.29,124.25,0.063]
[1743576124259,23.31790499,124.29,124.25,0.063]
[1743576124434,96.85790499,124.31,124.25,0.063]
[1743576124636,80.7,124.31,124.26,1.6025]
[1743576125048,96.85790499,124.31,124.26,1.6025]
[1743576125737,96.85790499,124.31,124.26,9.6497]
[1743576127661,96.85790499,124.31,124.26,8.0472]
[1743576127958,16.15790499,124.3,124.25,8.1112]
[1743576130564,16.15790499,124.29,124.25,8.1112]
[1743576131157,16.15790499,124.29,124.25,0.063]
[1743576131360,16.15790499,124.28,124.25,0.063]
[1743576134560,24.20400499,124.29,124.25,0.063]
[1743576134737,16.15790499,124.29,124.25,0.063]
[1743576135564,80.84216157,124.28,124.25,0.063]
[1743576135752,16.15790499,124.26,124.25,0.063]
[1743576136061,16.15790499,124.27,124.25,0.063]
[1743576136446,16.15790499,124.28,124.25,0.063]
[1743576137365,24.20420499,124.28,124.25,0.063]
[1743576138043,16.15790499,124.27,124.25,0.063]
[1743576138446,16.15790499,124.26,124.25,0.063]
[1743576138777,24.20550499,124.26,124.25,0.063]
[1743576142769,8.33122314,124.27,124.25,0.063]
[1743576142949,24.48912813,124.27,124.25,0.063]
[1743576144789,16.15790499,124.3,124.25,0.063]
[1743576144958,28.1859,124.31,124.25,6.7235]
[1743576144959,44.34380499,124.31,124.25,6.7235]
[1743576145276,24.23230499,124.31,124.25,6.7235]
[1743576146450,8.0744,124.31,124.25,6.7235]
[1743576147483,8.0744,124.31,124.25,14.7716]
[1743576147853,0.03,124.31,124.25,95.6716]
[1743576149672,0.03,124.31,124.26,18.64964886]
[1743576149857,0.03,124.31,124.29,6.5142]
[1743576150064,0.03,124.31,124.29,87.4142]
[1743576151167,0.03,124.31,124.29,95.4597]
[1743576153264,0.03,124.31,124.29,87.4142]
[1743576153462,0.03,124.31,124.29,6.5142]
[1743576154988,0.03,124.31,124.27,82.5486]
[1743576155286,8.0744,124.31,124.27,82.5486]
[1743576157089,8.0744,124.31,124.26,7.16]
[1743576157295,8.0456,124.29,124.25,6.1915]
[1743576158669,8.0456,124.29,124.25,0.063]
[1743576162294,24.20350499,124.29,124.25,0.063]
[1743576162496,16.15790499,124.28,124.25,0.063]
[1743576163594,8.0469,124.27,124.25,0.063]
[1743576164196,0.28432314,124.3,124.25,0.063]
[1743576164385,16.44222813,124.3,124.25,0.063]
[1743576165299,0.28432314,124.3,124.25,0.063]
[1743576165591,16.44222813,124.3,124.25,0.063]
[1743576165795,24.48722813,124.3,124.25,0.063]
[1743576166387,24.20290499,124.3,124.25,0.063]
[1743576168091,16.15790499,124.29,124.25,0.063]
[1743576169787,24.20420499,124.29,124.25,0.063]
[1743576170093,16.15790499,124.28,124.25,0.063]
[1743576171478,24.20470499,124.28,124.25,0.063]
[1743576173602,8.0468,124.28,124.25,0.063]
[1743576174176,8.046,124.29,124.25,0.063]
[1743576177710,24.48722813,124.3,124.25,0.063]
[1743576178400,16.15790499,124.29,124.25,0.063]
[1743576180616,8.0463,124.28,124.25,0.063]
[1743576186413,8.046,124.29,124.25,0.063]
[1743576188224,16.15790499,124.3,124.25,0.063]
[1743576188392,0.03,124.31,124.26,7.5806]
[1743576188891,0.03,124.31,124.26,88.4806]
[1743576190830,0.03,124.31,124.27,8.0469]
[1743576192092,0.03,124.31,124.27,88.9469]
[1743576192293,0.03,124.31,124.27,109.0643]
[1743576193710,0.03,124.31,124.28,18.64964886]
[1743576193913,0.03,124.31,124.29,7.16]
[1743576194221,0.03,124.31,124.29,88.06]
[1743576195002,0.03,124.31,124.3,8.045]
[1743576196204,0.03,124.31,124.3,26.69464886]
[1743576196404,0.03,124.31,124.3,115.85814886]
[1743576199230,0.03,124.32,124.31,20.28432314]
[1743576199814,0.03,124.32,124.31,101.18432314]
[1743576200950,0.03,124.32,124.31,109.22872314]
[1743576204722,0.03,124.32,124.31,127.878372]
[1743576207449,0.03,124.37,124.34,20.0]
[1743576207652,0.03,124.37,124.35,7.16]
[1743576208342,0.03,124.37,124.35,11.1462529]
[1743576209254,0.03,124.37,124.36,8.0411]
[1743576210962,0.03,124.37,124.36,26.69074886]
[1743576212044,0.03,124.37,124.36,107.59074886]
[1743576213454,0.03,124.37,124.36,107.875072]
[1743576216155,0.03,124.42,124.41,20.28432314]
[1743576216356,0.03,124.44,124.43,20.0]
[1743576218261,0.03,124.44,124.43,28.0366]
[1743576219266,0.03,124.44,124.43,46.68624886]
[1743576220253,0.03,124.46,124.44,18.64964886]
[1743576220457,0.03,124.46,124.45,7.16]
[1743576221234,0.03,124.46,124.45,25.80964886]
[1743576221439,0.03,124.46,124.45,46.093972]
[1743576222058,0.03,124.48,124.47,38.64964886]
[1743576222253,0.03,124.48,124.47,108.904]
[1743576222464,0.03,124.48,124.47,100.87]
[1743576223172,0.03,124.48,124.47,108.904]
[1743576223967,0.03,124.48,124.45,88.03]
[1743576224362,0.03,124.48,124.45,88.01]
[1743576225883,0.03,124.48,124.45,96.0453]
[1743576226098,0.03,124.48,124.45,88.01]
[1743576226589,0.03,124.48,124.45,80.87]
[1743576226871,0.03,124.48,124.45,88.9052]
[1743576227176,0.03,124.48,124.45,80.87]
[1743576228980,0.03,124.48,124.44,7.14]
[1743576230987,8.0634,124.48,124.44,7.14]
[1743576231188,0.03,124.48,124.44,15.1759]
[1743576231396,0.03,124.48,124.44,7.14]
[1743576233496,0.03,124.48,124.42,96.047]
[1743576233696,1.5303,124.47,124.42,80.87]
[1743576233870,16.15790499,124.46,124.42,80.87]
[1743576234368,17.68820499,124.47,124.42,80.87]
[1743576234689,17.68820499,124.47,124.42,80.933]
[1743576234997,1.5303,124.47,124.42,80.933]
[1743576235392,9.5646,124.47,124.42,88.97]
[1743576237596,9.5646,124.47,124.42,80.933]
[1743576238291,9.5646,124.47,124.42,88.9701]
[1743576241798,1.5303,124.47,124.42,88.9701]
[1743576241999,0.03,124.48,124.42,88.9701]
[1743576242297,8.0636,124.48,124.42,88.9701]
[1743576243191,0.03,124.48,124.42,88.9701]
[1743576243577,0.03,124.48,124.42,95.3476]
[1743576244679,0.03,124.48,124.43,18.64964886]
[1743576244874,0.03,124.48,124.44,7.14]
[1743576245688,0.03,124.48,124.45,8.0353]
[1743576249103,0.03,124.48,124.44,96.0456]
[1743576249708,0.03,124.48,124.45,18.64964886]
[1743576249888,0.03,124.48,124.47,27.767]
[1743576250199,0.03,124.48,124.47,127.570972]
[1743576251005,0.03,124.49,124.48,20.28432314]
[1743576251180,0.03,124.5,124.48,46.073972]
[1743576251385,0.8248947,124.54,124.51,20.0]
[1743576251593,0.8248947,124.54,124.53,20.0]
[1743576252482,0.8248947,124.54,124.52,7.14]
[1743576253878,0.8248947,124.54,124.52,20.0]
[1743576255302,0.8248947,124.54,124.49,13.1552]
[1743576255518,25.45854604,124.53,124.46,87.1965]
[1743576255681,25.1742229,124.52,124.46,6.3265]
[1743576255884,25.1742229,124.5,124.42,80.933]
[1743576256303,18.933972,124.51,124.45,20.0]
[1743576256488,25.1742229,124.5,124.45,20.0]
[1743576256690,86.7404,124.52,124.45,20.0]
[1743576256890,8.0321,124.5,124.45,20.0]
[1743576258510,8.0621,124.5,124.45,20.0]
[1743576259489,0.03,124.5,124.45,20.0]
[1743576260910,0.03,124.5,124.45,108.9051]
[1743576261105,0.03,124.5,124.45,116.0451]
[1743576263397,0.03,124.5,124.46,6.525]
[1743576264794,0.03,124.5,124.46,87.395]
[1743576267499,0.03,124.5,124.46,80.87]
[1743576269123,26.8500229,124.5,124.43,6.4897]
[1743576269424,25.1742229,124.49,124.43,6.4897]
[1743576269918,25.1742229,124.47,124.42,0.063]
[1743576270725,25.1742229,124.48,124.42,0.063]
[1743576270930,8.034,124.48,124.42,8.1002]
[1743576271595,25.1742229,124.47,124.42,0.063]
[1743576273123,20.0835,124.48,124.42,0.063]
[1743576273431,25.45854604,124.48,124.42,0.063]
[1743576274323,25.1742229,124.48,124.42,0.063]
[1743576274809,33.2069229,124.49,124.42,0.063]
[1743576276722,8.034,124.47,124.42,0.063]
[1743576277254,33.2079229,124.48,124.42,0.063]
[1743576277648,8.0337,124.48,124.42,0.063]
[1743576279443,33.2069229,124.49,124.42,0.063]
[1743576279653,33.2069229,124.49,124.42,80.933]
[1743576280749,33.2069229,124.49,124.43,8.0366]
[1743576282961,33.2069229,124.49,124.42,88.9699]
[1743576285355,8.034,124.47,124.42,88.9699]
[1743576286162,8.034,124.47,124.42,80.933]
[1743576287768,33.2082229,124.47,124.42,80.933]
[1743576291464,33.2082229,124.47,124.42,0.063]
[1743576291639,16.11384696,124.47,124.42,0.063]
[1743576292861,8.0347,124.46,124.42,0.063]
[1743576293944,24.14854696,124.46,124.42,0.063]
[1743576294147,8.0347,124.46,124.42,0.063]
[1743576294447,24.14854696,124.46,124.42,0.063]
[1743576298956,8.0347,124.46,124.42,0.063]
[1743576299156,8.0342,124.47,124.42,0.063]
[1743576299559,80.7,124.49,124.42,8.8538]
[1743576299748,18.0739701,124.5,124.42,89.7238]
[1743576300376,8.033,124.49,124.43,8.0366]
[1743576301059,16.11384696,124.47,124.42,80.933]
[1743576301378,16.11384696,124.46,124.42,0.063]
[1743576301880,7.42432314,124.48,124.42,0.063]
[1743576301881,16.11384696,124.45,124.42,0.063]
[1743576302180,16.11384696,124.43,124.42,0.063]
[1743576302362,24.15044696,124.43,124.42,0.063]
[1743576302965,24.4347701,124.43,124.42,0.063]
[1743576303361,0.28432314,124.42,124.36,237.4351]
[1743576303559,16.11384696,124.41,124.34,80.87]
[1743576303763,25.20612484,124.41,124.34,80.87]
[1743576304070,25.20612484,124.41,124.34,88.9122]
[1743576304262,8.0379,124.41,124.34,88.9122]
[1743576305252,105.90612484,124.44,124.35,18.64964886]
[1743576305456,105.90612484,124.44,124.37,6.5189]
[1743576305457,25.20612484,124.44,124.37,6.5189]
[1743576305982,25.20612484,124.42,124.37,6.5189]
[1743576306155,25.20612484,124.41,124.35,80.87]
[1743576306354,33.52764798,124.42,124.35,88.9116]
[1743576306564,8.0372,124.42,124.35,88.9116]
[1743576306765,8.0369,124.43,124.35,88.9116]
[1743576306984,88.12432314,124.44,124.38,20.0]
[1743576307284,34.75782484,124.45,124.38,20.0]
[1743576307453,34.75782484,124.45,124.38,100.87]
[1743576307863,25.20612484,124.44,124.38,100.87]
[1743576308264,9.5517,124.45,124.38,100.87]
[1743576308463,8.0366,124.44,124.38,100.87]
[1743576308661,25.20612484,124.43,124.38,100.87]
[1743576308865,25.20612484,124.42,124.38,80.87]
[1743576309084,25.20612484,124.42,124.35,88.9116]
[1743576309280,0.28432314,124.43,124.35,88.9116]
[1743576309474,25.49044798,124.43,124.35,88.9116]
[1743576310065,8.0372,124.42,124.35,88.9116]
[1743576311786,33.24332484,124.42,124.35,88.9116]
[1743576312079,8.0372,124.42,124.35,88.9116]
[1743576314172,33.24332484,124.42,124.35,88.9116]
[1743576314481,33.24332484,124.42,124.35,80.87]
[1743576314482,25.20612484,124.41,124.35,80.87]
[1743576315985,8.0385,124.4,124.35,80.87]
[1743576317682,25.20612484,124.39,124.35,0.063]
[1743576317882,53.34102484,124.4,124.35,0.063]
[1743576318189,25.20612484,124.39,124.35,0.063]
[1743576319675,8.0398,124.38,124.35,0.063]
[1743576321397,33.24592484,124.38,124.35,0.063]
[1743576323305,25.20612484,124.36,124.35,0.063]
[1743576323473,25.49044798,124.36,124.35,0.063]
[1743576323673,16.42879651,124.36,124.35,0.063]
[1743576323894,24.46989651,124.36,124.35,0.063]
[1743576325098,88.7395,124.39,124.35,0.063]
[1743576325997,104.88397337,124.39,124.35,0.063]
[1743576326301,88.7395,124.39,124.35,0.063]
[1743576326477,18.08629651,124.4,124.35,0.063]
[1743576327898,8.0394,124.39,124.35,0.063]
[1743576328284,33.24697729,124.41,124.35,0.063]
[1743576329283,25.20907729,124.4,124.35,0.063]
[1743576329485,8.0392,124.39,124.35,0.063]
[1743576330401,8.32222314,124.41,124.35,0.063]
[1743576330592,33.53130043,124.41,124.35,0.063]
[1743576334285,8.0392,124.39,124.35,0.063]
[1743576335111,8.0392,124.39,124.35,0.063]
[1743576335907,33.24757729,124.4,124.35,0.063]
[1743576339014,53.34397729,124.4,124.35,0.063]
[1743576339387,25.20907729,124.38,124.35,0.063]
[1743576339694,25.20907729,124.37,124.35,0.063]
[1743576340514,25.20907729,124.36,124.35,0.063]
[1743576340693,25.49340043,124.36,124.35,0.063]
[1743576341102,33.53450043,124.36,124.35,0.063]
[1743576346387,53.63740043,124.36,124.31,0.063]
[1743576346612,25.20907729,124.35,124.31,0.063]
[1743576346918,25.49340043,124.34,124.31,0.063]
[1743576348108,8.0431,124.33,124.31,0.063]
[1743576348409,33.25217729,124.33,124.31,0.063]
[1743576349717,24.19420891,124.33,124.31,0.063]
[1743576350415,8.0431,124.33,124.31,0.063]
[1743576351125,80.7,124.35,124.31,0.063]
[1743576351724,88.7421,124.35,124.31,0.063]
[1743576352829,8.0421,124.35,124.31,0.063]
[1743576356449,24.19320891,124.35,124.31,0.063]
[1743576356816,8.0421,124.35,124.31,0.063]
[1743576361413,8.35542314,124.36,124.31,0.063]
[1743576361612,24.50653205,124.36,124.31,0.063]
[1743576362045,44.60943205,124.36,124.31,0.063]
[1743576362342,16.15110891,124.35,124.31,0.063]
[1743576363013,16.15110891,124.34,124.31,0.063]
[1743576363436,8.0437,124.32,124.31,0.063]
[1743576363638,8.0424,124.34,124.31,0.063]
[1743576365944,8.32612314,124.35,124.31,0.063]
[1743576366248,8.0418,124.35,124.31,0.063]
[1743576366448,88.7714,124.36,124.31,0.063]
[1743576366946,0.03,124.36,124.32,6.0564]
[1743576368421,0.03,124.36,124.32,14.0998]
[1743576370045,0.03,124.36,124.32,94.9698]
[1743576371943,0.03,124.36,124.32,86.9264]
[1743576373450,0.03,124.36,124.32,6.0564]
[1743576374856,16.18110891,124.36,124.31,1.6073]
[1743576375060,16.18110891,124.36,124.31,0.063]
[1743576377859,24.19290891,124.35,124.31,0.063]
[1743576378763,44.29740891,124.35,124.31,0.063]
[1743576380968,16.15110891,124.34,124.31,0.063]
[1743576382675,8.0431,124.33,124.31,0.063]
[1743576383547,24.19420891,124.33,124.31,0.063]
[1743576388263,44.29960891,124.34,124.31,0.063]
[1743576408616,24.47913205,124.32,124.31,0.063]
[1743576410124,8.0437,124.32,124.31,0.063]
[1743576411889,0.03,124.35,124.31,0.063]
[1743576412093,8.0424,124.34,124.31,0.063]
[1743576412818,0.03,124.35,124.31,0.063]
[1743576413319,16.15110891,124.34,124.31,0.063]
[1743576414014,16.15110891,124.33,124.31,0.063]
[1743576414315,16.15110891,124.34,124.31,0.063]
[1743576415315,8.0431,124.33,124.31,0.063]
[1743576416515,8.0424,124.34,124.31,0.063]
[1743576416901,8.072,124.35,124.31,6.6709]
[1743576417218,8.072,124.35,124.31,8.2338]
[1743576417722,0.03,124.35,124.31,8.2338]
[1743576424601,0.03,124.35,124.31,16.2781]
[1743576426729,0.03,124.35,124.31,8.2338]
[1743576430428,0.31432314,124.35,124.31,0.063]
[1743576431021,0.03,124.35,124.31,0.063]
[1743576431220,0.31432314,124.35,124.31,0.063]
[1743576432033,28.1485,124.34,124.31,0.063]
[1743576432837,18.933972,124.33,124.31,0.063]
[1743576433029,108.8485,124.34,124.31,0.063]
[1743576439239,0.28432314,124.33,124.31,0.063]
[1743576439936,8.32802314,124.32,124.31,0.0001]
[1743576445415,0.28432314,124.31,124.3,0.0001]
[1743576445937,43.12948091,124.31,124.3,0.0001]
[1743576446318,26.978372,124.31,124.3,0.0001]
[1743576448645,43.12948091,124.31,124.3,0.0001]
[1743576449754,0.28432314,124.28,124.25,0.063]
[1743576450848,8.0469,124.27,124.25,0.063]
[1743576455250,0.28432314,124.26,124.25,0.063]
[1743576456137,8.33192314,124.26,124.25,0.063]
[1743576460979,100.8166,124.28,124.25,0.063]
[1743576461259,88.7466,124.28,124.25,0.063]
[1743576461463,8.0466,124.28,124.25,0.063]
[1743576462864,20.1158,124.28,124.25,0.063]
[1743576463064,36.26690891,124.28,124.25,0.063]
[1743576463267,20.1158,124.28,124.25,0.063]
[1743576465180,28.1621,124.28,124.25,0.063]
[1743576465544,8.0463,124.28,124.25,0.063]
[1743576466864,28.1576,124.3,124.25,0.063]
[1743576468370,8.0463,124.28,124.25,0.063]
[1743576468866,28.1621,124.28,124.25,0.063]
[1743576469165,44.31320891,124.28,124.25,0.063]
[1743576469564,28.1621,124.28,124.25,0.063]
[1743576469764,44.31320891,124.28,124.25,0.063]
[1743576474279,35.08508091,124.27,124.25,0.063]
[1743576474581,16.43543205,124.26,124.25,0.063]
[1743576476289,24.48303205,124.26,124.25,0.063]
[1743576477093,8.33192314,124.26,124.25,0.063]
[1743576479893,26.981572,124.26,124.25,0.063]
[1743576480193,43.13268091,124.26,124.25,0.063]
[1743576480408,0.28432314,124.25,124.23,0.063]
[1743576480774,16.43543205,124.25,124.23,0.063]
[1743576481099,55.08508091,124.24,124.23,0.0001]
[1743576481479,18.933972,124.23,124.22,0.0001]
[1743576481686,35.08508091,124.23,124.22,0.0001]
[1743576482296,43.13458091,124.23,124.22,0.0001]
[1743576484419,8.33382314,124.23,124.22,0.0001]
[1743576485084,8.0492,124.24,124.22,0.0001]
[1743576486279,8.33252314,124.25,124.22,0.0001]
[1743576491202,8.0482,124.25,124.22,0.0001]
[1743576491403,8.0469,124.27,124.22,1.5961]
[1743576493402,8.0469,124.27,124.22,9.6461]
[1743576494303,0.03,124.25,124.22,9.6461]
[1743576494688,0.03,124.25,124.22,1.5961]
[1743576499617,0.03,124.25,124.22,0.0001]
[1743576500815,0.03,124.25,124.22,8.0502]
[1743576504302,0.03,124.25,124.23,1.5871]
[1743576504628,0.03,124.25,124.24,6.3922]
[1743576507330,0.03,124.25,124.24,14.4411]
[1743576507529,0.03,124.25,124.23,1.5871]
[1743576507707,0.03,124.25,124.22,80.8701]
[1743576508223,0.03,124.25,124.22,0.0001]
[1743576510432,8.0782,124.25,124.22,0.0001]
[1743576513222,28.1989,124.25,124.22,0.0001]
[1743576515231,8.0782,124.25,124.22,0.0001]
[1743576515433,0.03,124.25,124.22,0.0001]
[1743576515638,0.03,124.25,124.22,1.5769]
[1743576516648,0.03,124.25,124.22,9.627]
[1743576517726,0.03,124.25,124.22,90.497]
[1743576518839,0.03,124.25,124.24,20.0]
[1743576519045,0.03,124.29,124.24,26.5511]
[1743576520042,0.03,124.29,124.24,34.5997]
[1743576522958,0.03,124.29,124.24,115.4697]
[1743576526860,0.03,124.29,124.28,20.0]
[1743576527069,0.03,124.29,124.28,26.0084]
[1743576527460,0.03,124.29,124.28,34.0547]
[1743576527770,0.03,124.29,124.28,26.0084]
[1743576529571,0.03,124.29,124.28,20.0]
[1743576532753,0.03,124.29,124.26,82.4894]
[1743576532949,0.03,124.29,124.26,80.87]
[1743576536280,0.03,124.29,124.26,88.9173]
[1743576540378,8.32672314,124.34,124.28,1.604]
[1743576540379,8.0424,124.34,124.28,1.604]
[1743576540678,8.0424,124.34,124.28,82.474]
[1743576541496,8.0718,124.35,124.29,8.0456]
[1743576542185,8.0718,124.35,124.29,14.6015]
[1743576543082,8.0718,124.35,124.29,6.5559]